[Event "Polofinale MCR junioru 2023"]
[Site "Czech Republic"]
[Date "2023.11.17"]
[Round "8.26"]
[White "Zezula, Matej"]
[Black "Pressler, Tobias"]
[Result "0-1"]
[TimeControl "90 min per 40 moves + 15 min + 30 sec / move from move 1"]
[WhiteFideId "23725796"]
[BlackFideId "23715359"]
[WhiteElo "1666"]
[BlackElo "1937"]

1. e4 {[%clk 01:30:54]} {[%emt 00:00:05]} d5 {[%clk 01:30:56]} {[%emt
00:00:04]} 2. exd5 {[%clk 01:31:09]} {[%emt 00:00:15]} Qxd5 {[%clk 01:31:22]}
{[%emt 00:00:05]} 3. Nc3 {[%clk 01:31:09]} {[%emt 00:00:30]} Qd6 {[%clk
01:31:48]} {[%emt 00:00:04]} 4. d4 {[%clk 01:29:11]} {[%emt 00:02:27]} Nf6
{[%clk 01:32:13]} {[%emt 00:00:05]} 5. Bb5+ {[%clk 01:27:17]} {[%emt 00:02:25]}
c6 {[%clk 01:32:30]} {[%emt 00:00:13]} 6. Be2 {[%clk 01:27:23]} {[%emt
00:00:24]} Bf5 {[%clk 01:32:36]} {[%emt 00:00:24]} 7. Nf3 {[%clk 01:27:32]}
{[%emt 00:00:20]} Nbd7 {[%clk 01:31:45]} {[%emt 00:01:22]} 8. O-O {[%clk
01:27:46]} {[%emt 00:00:16]} e6 {[%clk 01:30:18]} {[%emt 00:01:57]} 9. Be3
{[%clk 01:27:18]} {[%emt 00:00:58]} Qc7 {[%clk 01:30:42]} {[%emt 00:00:06]} 10.
Re1 {[%clk 01:24:55]} {[%emt 00:02:52]} Bd6 {[%clk 01:30:56]} {[%emt 00:00:17]}
11. Qd2 {[%clk 01:23:00]} {[%emt 00:02:25]} O-O {[%clk 01:31:14]} {[%emt
00:00:12]} 12. Rad1 {[%clk 01:23:09]} {[%emt 00:00:21]} Ng4 {[%clk 01:13:18]}
{[%emt 00:18:25]} 13. h3 {[%clk 01:22:25]} {[%emt 00:01:14]} Nxe3 {[%clk
01:06:44]} {[%emt 00:07:04]} 14. fxe3 {[%clk 01:22:42]} {[%emt 00:00:12]} Bg3
{[%clk 01:05:59]} {[%emt 00:01:15]} 15. Rf1 {[%clk 01:22:52]} {[%emt 00:00:19]}
Rad8 {[%clk 00:58:11]} {[%emt 00:08:20]} 16. e4 {[%clk 01:20:46]} {[%emt
00:02:36]} Bg6 {[%clk 00:58:37]} {[%emt 00:00:03]} 17. Bc4 {[%clk 01:18:03]}
{[%emt 00:03:13]} Nb6 {[%clk 00:53:44]} {[%emt 00:05:24]} 18. Bd3 {[%clk
01:15:40]} {[%emt 00:02:52]} e5 {[%clk 00:51:36]} {[%emt 00:02:39]} 19. dxe5
{[%clk 01:13:26]} {[%emt 00:02:43]} Bxe5 {[%clk 00:49:07]} {[%emt 00:02:59]} 20.
Nxe5 {[%clk 01:10:10]} {[%emt 00:03:46]} Qxe5 {[%clk 00:49:32]} {[%emt
00:00:04]} 21. Qf2 {[%clk 01:09:18]} {[%emt 00:01:21]} Rfe8 {[%clk 00:43:10]}
{[%emt 00:06:54]} 22. Rde1 {[%clk 01:06:19]} {[%emt 00:03:29]} Re6 {[%clk
00:39:20]} {[%emt 00:04:20]} 23. Kh1 {[%clk 01:00:14]} {[%emt 00:06:35]} Rf6
{[%clk 00:37:33]} {[%emt 00:02:18]} 24. Qh4 {[%clk 00:59:29]} {[%emt 00:01:10]}
Rxf1+ {[%clk 00:37:40]} {[%emt 00:00:26]} 25. Rxf1 {[%clk 00:59:45]} {[%emt
00:00:15]} f6 {[%clk 00:37:25]} {[%emt 00:00:46]} 26. Nd1 {[%clk 00:52:53]}
{[%emt 00:07:22]} Nd7 {[%clk 00:33:47]} {[%emt 00:04:08]} 27. Bc4+ {[%clk
00:48:23]} {[%emt 00:05:00]} Kh8 {[%clk 00:34:02]} {[%emt 00:00:15]} 28. Nc3
{[%clk 00:43:37]} {[%emt 00:05:15]} Nc5 {[%clk 00:32:37]} {[%emt 00:01:56]} 29.
Re1 {[%clk 00:41:02]} {[%emt 00:03:04]} b5 {[%clk 00:32:26]} {[%emt 00:00:41]}
30. Bb3 {[%clk 00:38:51]} {[%emt 00:02:41]} b4 {[%clk 00:32:37]} {[%emt
00:00:19]} 31. Ne2 {[%clk 00:38:53]} {[%emt 00:00:28]} Bxe4 {[%clk 00:31:44]}
{[%emt 00:01:23]} 32. Nf4 {[%clk 00:36:52]} {[%emt 00:02:31]} Qf5 {[%clk
00:27:10]} {[%emt 00:05:05]} 33. Ne6 {[%clk 00:32:03]} {[%emt 00:05:19]} Rd2
{[%clk 00:08:49]} {[%emt 00:18:51]} 34. Qg3 {[%clk 00:15:47]} {[%emt 00:16:46]}
Nxe6 {[%clk 00:09:11]} {[%emt 00:00:08]} 35. Bxe6 {[%clk 00:15:24]} {[%emt
00:00:53]} Qe5 {[%clk 00:09:21]} {[%emt 00:00:21]} 36. Qxe5 {[%clk 00:11:34]}
{[%emt 00:04:19]} Bxg2+ {[%clk 00:09:37]} {[%emt 00:00:14]} 37. Kg1 {[%clk
00:11:21]} {[%emt 00:00:44]} fxe5 {[%clk 00:10:02]} {[%emt 00:00:05]} 38. Rxe5
{[%clk 00:11:28]} {[%emt 00:00:23]} g6 {[%clk 00:10:22]} {[%emt 00:00:10]} 39.
Bb3 {[%clk 00:08:40]} {[%emt 00:03:17]} Bxh3 {[%clk 00:08:08]} {[%emt
00:02:43]} 40. Re8+ {[%clk 00:08:30]} {[%emt 00:00:41]} Kg7 {[%clk 00:08:33]}
{[%emt 00:00:06]} 41. Re7+ {[%clk 00:08:53]} {[%emt 00:00:07]} Kh6 {[%clk
00:06:47]} {[%emt 00:02:16]} 42. Rxa7 {[%clk 00:09:17]} {[%emt 00:00:06]} Rd7
{[%clk 00:07:03]} {[%emt 00:00:13]} 43. Ra6 {[%clk 00:08:54]} {[%emt 00:00:53]}
Rc7 {[%clk 00:07:06]} {[%emt 00:00:28]} 44. Rb6 {[%clk 00:08:42]} {[%emt
00:00:42]} c5 {[%clk 00:07:23]} {[%emt 00:00:13]} 45. Bc4 {[%clk 00:08:43]}
{[%emt 00:00:29]} Bf5 {[%clk 00:07:38]} {[%emt 00:00:14]} 46. c3 {[%clk
00:07:41]} {[%emt 00:01:32]} bxc3 {[%clk 00:07:51]} {[%emt 00:00:18]} 47. bxc3
{[%clk 00:07:58]} {[%emt 00:00:13]} Ra7 {[%clk 00:06:15]} {[%emt 00:02:06]} 48.
Rc6 {[%clk 00:07:40]} {[%emt 00:00:48]} Bb1 {[%clk 00:04:55]} {[%emt 00:01:50]}
49. Rxc5 {[%clk 00:07:34]} {[%emt 00:00:36]} Bxa2 {[%clk 00:05:20]} {[%emt
00:00:05]} 50. Be2 {[%clk 00:07:22]} {[%emt 00:00:41]} Be6 {[%clk 00:04:27]}
{[%emt 00:01:23]} 51. Re5 {[%clk 00:06:34]} {[%emt 00:01:18]} Bf5 {[%clk
00:04:49]} {[%emt 00:00:08]} 52. c4 {[%clk 00:06:28]} {[%emt 00:00:36]} Kg5
{[%clk 00:05:00]} {[%emt 00:00:19]} 53. Re8 {[%clk 00:05:55]} {[%emt 00:01:02]}
h5 {[%clk 00:05:03]} {[%emt 00:00:29]} 54. Bf3 {[%clk 00:05:53]} {[%emt
00:00:33]} Ra1+ {[%clk 00:05:14]} {[%emt 00:00:19]} 55. Kf2 {[%clk 00:05:56]}
{[%emt 00:00:26]} Rc1 {[%clk 00:05:38]} {[%emt 00:00:05]} 56. Bd5 {[%clk
00:06:14]} {[%emt 00:00:12]} Kf4 {[%clk 00:05:32]} {[%emt 00:00:37]} 0-1

[Event "Polofinale MCR junioru 2023"]
[Site "Czech Republic"]
[Date "2023.11.17"]
[Round "8.27"]
[White "Babula, Matej"]
[Black "Veny, Jaume"]
[Result "0-1"]
[TimeControl "90 min per 40 moves + 15 min + 30 sec / move from move 1"]
[WhiteFideId "398322"]
[BlackFideId "397792"]
[WhiteElo "1899"]
[BlackElo "1729"]

1. e4 {[%clk 01:30:57]} {[%emt 00:00:02]} c5 {[%clk 01:30:45]} {[%emt
00:00:16]} 2. Nf3 {[%clk 01:31:22]} {[%emt 00:00:04]} Nc6 {[%clk 01:31:01]}
{[%emt 00:00:14]} 3. d4 {[%clk 01:31:47]} {[%emt 00:00:05]} cxd4 {[%clk
01:31:26]} {[%emt 00:00:06]} 4. Nxd4 {[%clk 01:32:13]} {[%emt 00:00:04]} Nf6
{[%clk 01:31:32]} {[%emt 00:00:23]} 5. Nc3 {[%clk 01:32:38]} {[%emt 00:00:05]}
e5 {[%clk 01:31:55]} {[%emt 00:00:07]} 6. Ndb5 {[%clk 01:32:54]} {[%emt
00:00:15]} d6 {[%clk 01:32:18]} {[%emt 00:00:07]} 7. Bg5 {[%clk 01:33:12]}
{[%emt 00:00:12]} a6 {[%clk 01:32:41]} {[%emt 00:00:07]} 8. Na3 {[%clk
01:33:38]} {[%emt 00:00:04]} b5 {[%clk 01:33:07]} {[%emt 00:00:04]} 9. Nab1
{[%clk 01:31:41]} {[%emt 00:02:27]} Be7 {[%clk 01:31:49]} {[%emt 00:01:48]} 10.
Bxf6 {[%clk 01:31:33]} {[%emt 00:00:38]} Bxf6 {[%clk 01:31:49]} {[%emt
00:00:30]} 11. a4 {[%clk 01:27:35]} {[%emt 00:04:28]} b4 {[%clk 01:25:30]}
{[%emt 00:06:49]} 12. Nd5 {[%clk 01:27:54]} {[%emt 00:00:10]} O-O {[%clk
01:21:35]} {[%emt 00:04:25]} 13. c3 {[%clk 01:24:49]} {[%emt 00:03:35]} Rb8
{[%clk 01:16:38]} {[%emt 00:05:28]} 14. b3 {[%clk 01:18:44]} {[%emt 00:06:35]}
Bg5 {[%clk 01:11:05]} {[%emt 00:06:03]} 15. cxb4 {[%clk 01:13:25]} {[%emt
00:05:49]} Nxb4 {[%clk 01:10:38]} {[%emt 00:00:56]} 16. Bc4 {[%clk 01:10:40]}
{[%emt 00:03:15]} Nxd5 {[%clk 01:02:09]} {[%emt 00:08:59]} 17. Bxd5 {[%clk
01:10:47]} {[%emt 00:00:23]} Qa5+ {[%clk 01:02:26]} {[%emt 00:00:13]} 18. Kf1
{[%clk 01:04:20]} {[%emt 00:06:57]} Kh8 {[%clk 00:55:09]} {[%emt 00:07:47]} 19.
h4 {[%clk 00:52:51]} {[%emt 00:11:58]} Bh6 {[%clk 00:55:13]} {[%emt 00:00:28]}
20. g4 {[%clk 00:43:47]} {[%emt 00:09:33]} Bf4 {[%clk 00:55:27]} {[%emt
00:00:16]} 21. Qd3 {[%clk 00:42:22]} {[%emt 00:01:55]} Bxg4 {[%clk 00:47:58]}
{[%emt 00:08:01]} 22. Nc3 {[%clk 00:38:11]} {[%emt 00:04:40]} Be6 {[%clk
00:43:35]} {[%emt 00:04:54]} 23. Ne2 {[%clk 00:33:15]} {[%emt 00:05:26]} Bxd5
{[%clk 00:40:28]} {[%emt 00:03:37]} 24. exd5 {[%clk 00:33:34]} {[%emt
00:00:11]} Bh6 {[%clk 00:35:22]} {[%emt 00:05:36]} 25. Ng3 {[%clk 00:32:01]}
{[%emt 00:02:02]} Qb6 {[%clk 00:30:55]} {[%emt 00:04:58]} 26. Nf5 {[%clk
00:25:36]} {[%emt 00:06:55]} Qxb3 {[%clk 00:30:27]} {[%emt 00:00:58]} 27. Qxb3
{[%clk 00:26:01]} {[%emt 00:00:05]} Rxb3 {[%clk 00:30:46]} {[%emt 00:00:11]} 28.
Nxd6 {[%clk 00:26:11]} {[%emt 00:00:20]} g6 {[%clk 00:25:47]} {[%emt 00:05:29]}
29. h5 {[%clk 00:23:54]} {[%emt 00:02:47]} Kg7 {[%clk 00:25:37]} {[%emt
00:00:39]} 30. Rd1 {[%clk 00:12:09]} {[%emt 00:12:15]} Rd8 {[%clk 00:21:04]}
{[%emt 00:05:03]} 31. Nc4 {[%clk 00:11:33]} {[%emt 00:01:08]} Bf4 {[%clk
00:20:57]} {[%emt 00:00:36]} 32. d6 {[%clk 00:06:31]} {[%emt 00:05:31]} Rb4
{[%clk 00:19:48]} {[%emt 00:01:39]} 33. Na5 {[%clk 00:06:33]} {[%emt 00:00:30]}
Rd4 {[%clk 00:19:27]} {[%emt 00:00:50]} 34. Rxd4 {[%clk 00:02:43]} {[%emt
00:04:21]} exd4 {[%clk 00:19:52]} {[%emt 00:00:04]} 35. hxg6 {[%clk 00:02:55]}
{[%emt 00:00:18]} hxg6 {[%clk 00:20:11]} {[%emt 00:00:10]} 36. Nc4 {[%clk
00:02:54]} {[%emt 00:00:32]} Bxd6 {[%clk 00:20:18]} {[%emt 00:00:23]} 37. Ke2
{[%clk 00:03:00]} {[%emt 00:00:24]} Bb4 {[%clk 00:17:59]} {[%emt 00:02:48]} 38.
Kd3 {[%clk 00:03:07]} {[%emt 00:00:23]} a5 {[%clk 00:17:43]} {[%emt 00:00:47]}
39. Rh4 {[%clk 00:02:10]} {[%emt 00:01:27]} Bc3 {[%clk 00:17:59]} {[%emt
00:00:14]} 40. Na3 {[%clk 00:02:04]} {[%emt 00:00:35]} f5 {[%clk 00:16:59]}
{[%emt 00:01:30]} 41. Nb5 {[%clk 00:01:52]} {[%emt 00:00:42]} g5 {[%clk
00:17:10]} {[%emt 00:00:19]} 42. Rh1 {[%clk 00:01:39]} {[%emt 00:00:44]} Rh8
{[%clk 00:15:43]} {[%emt 00:01:56]} 43. Rg1 {[%clk 00:13:21]} {[%emt 00:04:19]}
Rh3+ {[%clk 00:30:35]} {[%emt 00:01:09]} 44. Kc4 {[%clk 00:12:58]} {[%emt
00:00:53]} Kg6 {[%clk 00:30:17]} {[%emt 00:00:47]} 45. Nxc3 {[%clk 00:09:41]}
{[%emt 00:03:47]} dxc3 {[%clk 00:30:33]} {[%emt 00:00:14]} 46. Kb5 {[%clk
00:10:05]} {[%emt 00:00:07]} Rf3 {[%clk 00:29:27]} {[%emt 00:01:35]} 47. Rf1
{[%clk 00:09:53]} {[%emt 00:00:42]} c2 {[%clk 00:22:46]} {[%emt 00:07:12]} 48.
Kxa5 {[%clk 00:10:06]} {[%emt 00:00:17]} Rxf2 {[%clk 00:23:08]} {[%emt
00:00:09]} 49. Rc1 {[%clk 00:10:28]} {[%emt 00:00:08]} g4 {[%clk 00:23:06]}
{[%emt 00:00:32]} 50. Kb5 {[%clk 00:10:10]} {[%emt 00:00:48]} g3 {[%clk
00:20:59]} {[%emt 00:02:37]} 51. a5 {[%clk 00:10:37]} {[%emt 00:00:03]} g2
{[%clk 00:19:31]} {[%emt 00:01:59]} 52. Rg1 {[%clk 00:09:50]} {[%emt 00:01:16]}
f4 {[%clk 00:19:26]} {[%emt 00:00:35]} 53. a6 {[%clk 00:10:12]} {[%emt
00:00:09]} c1=Q {[%clk 00:19:44]} {[%emt 00:00:11]} 54. Rxc1 {[%clk 00:09:53]}
{[%emt 00:00:49]} Ra2 {[%clk 00:19:58]} {[%emt 00:00:16]} 55. Kb6 {[%emt
00:00:58]} 0-1

[Event "Polofinale MCR junioru 2023"]
[Site "Czech Republic"]
[Date "2023.11.17"]
[Round "8.28"]
[White "Mrazek, Adam"]
[Black "Stejskal, Michal"]
[Result "0-1"]
[TimeControl "90 min per 40 moves + 15 min + 30 sec / move from move 1"]
[WhiteFideId "23725010"]
[BlackFideId "398195"]
[WhiteElo "1643"]
[BlackElo "1872"]

1. c4 {[%clk 01:30:09]} {[%emt 00:00:50]} e5 {[%clk 01:30:52]} {[%emt
00:00:09]} 2. g3 {[%clk 01:30:31]} {[%emt 00:00:09]} Nc6 {[%clk 01:31:15]}
{[%emt 00:00:07]} 3. Bg2 {[%clk 01:30:52]} {[%emt 00:00:09]} f5 {[%clk
01:31:37]} {[%emt 00:00:07]} 4. Nc3 {[%clk 01:31:11]} {[%emt 00:00:11]} Nf6
{[%clk 01:32:01]} {[%emt 00:00:06]} 5. a3 {[%clk 01:30:56]} {[%emt 00:00:45]}
Be7 {[%clk 01:31:11]} {[%emt 00:01:20]} 6. e3 {[%clk 01:30:36]} {[%emt
00:00:50]} O-O {[%clk 01:31:21]} {[%emt 00:00:20]} 7. Nge2 {[%clk 01:30:53]}
{[%emt 00:00:13]} d6 {[%clk 01:30:44]} {[%emt 00:01:07]} 8. d4 {[%clk
01:29:40]} {[%emt 00:01:43]} e4 {[%clk 01:30:44]} {[%emt 00:00:29]} 9. b4
{[%clk 01:28:22]} {[%emt 00:01:49]} Qe8 {[%clk 01:30:04]} {[%emt 00:01:10]} 10.
Bb2 {[%clk 01:25:19]} {[%emt 00:03:33]} Bd7 {[%clk 01:29:42]} {[%emt 00:00:52]}
11. Qb3 {[%clk 01:18:35]} {[%emt 00:07:14]} Kh8 {[%clk 01:29:48]} {[%emt
00:00:24]} 12. a4 {[%clk 01:15:47]} {[%emt 00:03:19]} Qf7 {[%clk 01:23:46]}
{[%emt 00:06:31]} 13. Nb5 {[%clk 00:59:11]} {[%emt 00:17:06]} a5 {[%clk
01:04:21]} {[%emt 00:19:56]} 14. Bc3 {[%clk 00:38:18]} {[%emt 00:21:23]} Nxb4
{[%clk 00:59:13]} {[%emt 00:05:38]} 15. Bxb4 {[%clk 00:38:27]} {[%emt
00:00:21]} Bxb5 {[%clk 00:59:35]} {[%emt 00:00:07]} 16. axb5 {[%clk 00:37:55]}
{[%emt 00:01:02]} axb4 {[%clk 00:59:59]} {[%emt 00:00:06]} 17. O-O {[%clk
00:34:00]} {[%emt 00:04:25]} g5 {[%clk 00:58:29]} {[%emt 00:02:00]} 18. Qxb4
{[%clk 00:27:12]} {[%emt 00:07:19]} d5 {[%clk 00:56:13]} {[%emt 00:02:47]} 19.
c5 {[%clk 00:24:16]} {[%emt 00:03:25]} b6 {[%clk 00:56:16]} {[%emt 00:00:27]}
20. Ra6 {[%clk 00:21:50]} {[%emt 00:02:55]} Nd7 {[%clk 00:48:36]} {[%emt
00:08:10]} 21. Rfa1 {[%clk 00:14:14]} {[%emt 00:08:07]} Rac8 {[%clk 00:47:08]}
{[%emt 00:01:58]} 22. Qb2 {[%clk 00:12:25]} {[%emt 00:02:19]} bxc5 {[%clk
00:47:22]} {[%emt 00:00:16]} 23. R1a5 {[%clk 00:02:24]} {[%emt 00:10:32]} Bf6
{[%clk 00:46:06]} {[%emt 00:01:45]} 24. Bh3 {[%clk 00:01:05]} {[%emt 00:01:49]}
Bg7 {[%clk 00:44:56]} {[%emt 00:01:41]} 25. Qc2 {[%clk 00:01:11]} {[%emt
00:00:24]} Qh5 {[%clk 00:44:06]} {[%emt 00:01:20]} 26. Bf1 {[%clk 00:01:16]}
{[%emt 00:00:25]} f4 {[%clk 00:40:20]} {[%emt 00:04:15]} 27. gxf4 {[%clk
00:00:50]} {[%emt 00:00:56]} cxd4 {[%clk 00:40:06]} {[%emt 00:00:45]} 28. Ng3
{[%clk 00:00:40]} {[%emt 00:00:41]} Qh4 {[%clk 00:39:47]} {[%emt 00:00:49]} 29.
fxg5 {[%clk 00:00:35]} {[%emt 00:00:35]} Ne5 {[%clk 00:39:39]} {[%emt
00:00:37]} 30. Bg2 {[%clk 00:00:34]} {[%emt 00:00:32]} d3 {[%clk 00:39:22]}
{[%emt 00:00:47]} 31. Qd1 {[%clk 00:00:34]} {[%emt 00:00:30]} Ng4 {[%clk
00:39:37]} {[%emt 00:00:15]} 32. h3 {[%clk 00:00:33]} {[%emt 00:00:31]} Nxf2
{[%clk 00:40:00]} {[%emt 00:00:06]} 33. Qh5 {[%clk 00:00:37]} {[%emt 00:00:27]}
Qxh5 {[%clk 00:40:04]} {[%emt 00:00:26]} 34. Nxh5 {[%clk 00:00:53]} {[%emt
00:00:14]} d2 {[%clk 00:40:29]} {[%emt 00:00:05]} 35. Ra1 {[%clk 00:00:31]}
{[%emt 00:00:52]} Bxa1 {[%clk 00:40:53]} {[%emt 00:00:06]} 36. Rxa1 {[%clk
00:00:59]} {[%emt 00:00:02]} d1=Q+ {[%clk 00:41:15]} {[%emt 00:00:07]} 37. Rxd1
{[%clk 00:01:23]} {[%emt 00:00:06]} Nxd1 {[%clk 00:41:40]} {[%emt 00:00:05]}
0-1

[Event "Polofinale MCR junioru 2023"]
[Site "Czech Republic"]
[Date "2023.11.17"]
[Round "8.29"]
[White "Bednar, Milos"]
[Black "Sprinar, Michal"]
[Result "1/2-1/2"]
[TimeControl "90 min per 40 moves + 15 min + 30 sec / move from move 1"]
[WhiteFideId "23709812"]
[BlackFideId "23714190"]
[WhiteElo "1833"]
[BlackElo "1742"]

1. Nf3 {[%clk 01:30:57]} {[%emt 00:00:02]} f5 {[%clk 01:30:56]} {[%emt
00:00:04]} 2. d4 {[%clk 01:31:23]} {[%emt 00:00:05]} g6 {[%clk 01:31:15]}
{[%emt 00:00:12]} 3. c4 {[%clk 01:31:49]} {[%emt 00:00:04]} Nf6 {[%clk
01:31:41]} {[%emt 00:00:04]} 4. Nc3 {[%clk 01:32:17]} {[%emt 00:00:02]} Bg7
{[%clk 01:32:03]} {[%emt 00:00:08]} 5. Qc2 {[%clk 01:32:38]} {[%emt 00:00:09]}
O-O {[%clk 01:32:18]} {[%emt 00:00:14]} 6. e4 {[%clk 01:32:54]} {[%emt
00:00:15]} d6 {[%clk 01:29:59]} {[%emt 00:02:48]} 7. Bd3 {[%clk 01:32:24]}
{[%emt 00:01:00]} fxe4 {[%clk 01:27:00]} {[%emt 00:03:29]} 8. Nxe4 {[%clk
01:32:17]} {[%emt 00:00:37]} Nc6 {[%clk 01:27:00]} {[%emt 00:00:30]} 9. Qc3
{[%clk 01:24:43]} {[%emt 00:08:04]} Nxe4 {[%clk 01:21:59]} {[%emt 00:05:31]} 10.
Bxe4 {[%clk 01:25:09]} {[%emt 00:00:05]} Bf5 {[%clk 01:22:23]} {[%emt
00:00:06]} 11. Bxf5 {[%clk 01:23:28]} {[%emt 00:02:11]} Rxf5 {[%clk 01:22:34]}
{[%emt 00:00:18]} 12. Be3 {[%clk 01:20:53]} {[%emt 00:03:05]} Qd7 {[%clk
01:22:18]} {[%emt 00:00:45]} 13. O-O {[%clk 01:08:54]} {[%emt 00:12:30]} Raf8
{[%clk 01:21:15]} {[%emt 00:01:33]} 14. Qd2 {[%clk 01:06:15]} {[%emt 00:03:09]}
e5 {[%clk 01:00:33]} {[%emt 00:21:11]} 15. d5 {[%clk 01:05:59]} {[%emt
00:00:47]} Ne7 {[%clk 01:00:58]} {[%emt 00:00:05]} 16. Ng5 {[%clk 01:05:40]}
{[%emt 00:00:49]} R8f6 {[%clk 00:51:09]} {[%emt 00:10:19]} 17. a4 {[%clk
01:04:44]} {[%emt 00:01:27]} a6 {[%clk 00:47:40]} {[%emt 00:03:58]} 18. a5
{[%clk 01:03:51]} {[%emt 00:01:23]} h6 {[%clk 00:44:03]} {[%emt 00:04:07]} 19.
Ne4 {[%clk 01:02:11]} {[%emt 00:02:11]} Rf7 {[%clk 00:43:55]} {[%emt 00:00:37]}
20. Bxh6 {[%clk 01:00:13]} {[%emt 00:02:28]} Bxh6 {[%clk 00:43:31]} {[%emt
00:00:54]} 21. Qxh6 {[%clk 01:00:38]} {[%emt 00:00:05]} Rh7 {[%clk 00:43:51]}
{[%emt 00:00:09]} 22. Qe3 {[%clk 01:00:34]} {[%emt 00:00:36]} Kg7 {[%clk
00:44:00]} {[%emt 00:00:20]} 23. Ng5 {[%clk 00:52:51]} {[%emt 00:08:14]} Rh8
{[%clk 00:38:51]} {[%emt 00:05:40]} 24. Ne6+ {[%clk 00:51:50]} {[%emt
00:01:32]} Kg8 {[%clk 00:39:06]} {[%emt 00:00:12]} 25. g4 {[%clk 00:46:23]}
{[%emt 00:05:58]} Rf7 {[%clk 00:37:53]} {[%emt 00:01:41]} 26. f4 {[%clk
00:44:19]} {[%emt 00:02:37]} c6 {[%clk 00:12:13]} {[%emt 00:26:10]} 27. fxe5
{[%clk 00:39:47]} {[%emt 00:05:02]} cxd5 {[%clk 00:10:19]} {[%emt 00:02:23]} 28.
Rxf7 {[%clk 00:40:12]} {[%emt 00:00:05]} Kxf7 {[%clk 00:10:21]} {[%emt
00:00:28]} 29. Rf1+ {[%clk 00:40:38]} {[%emt 00:00:04]} Ke8 {[%clk 00:10:38]}
{[%emt 00:00:11]} 30. Qh6 {[%clk 00:40:58]} {[%emt 00:00:12]} Qxe6 {[%clk
00:08:57]} {[%emt 00:02:12]} 31. Qxh8+ {[%clk 00:41:24]} {[%emt 00:00:04]} Kd7
{[%clk 00:09:19]} {[%emt 00:00:07]} 32. Qh3 {[%clk 00:40:23]} {[%emt 00:01:31]}
Qxe5 {[%clk 00:06:10]} {[%emt 00:03:39]} 33. cxd5 {[%clk 00:30:09]} {[%emt
00:10:45]} Qxd5 {[%clk 00:05:08]} {[%emt 00:01:31]} 34. Qc3 {[%clk 00:28:29]}
{[%emt 00:02:10]} Qe4 {[%clk 00:01:02]} {[%emt 00:04:35]} 35. h3 {[%clk
00:28:16]} {[%emt 00:00:45]} g5 {[%clk 00:00:51]} {[%emt 00:00:40]} 36. Rd1
{[%clk 00:26:25]} {[%emt 00:02:22]} Qf4 {[%clk 00:00:37]} {[%emt 00:00:44]} 37.
Kg2 {[%clk 00:26:16]} {[%emt 00:00:39]} Qe4+ {[%clk 00:00:51]} {[%emt
00:00:16]} 38. Kf2 {[%clk 00:25:40]} {[%emt 00:01:06]} Qf4+ {[%clk 00:00:36]}
{[%emt 00:00:45]} 39. Qf3 {[%clk 00:25:56]} {[%emt 00:00:13]} Qb4 {[%clk
00:00:50]} {[%emt 00:00:14]} 40. Qc3 {[%clk 00:25:15]} {[%emt 00:01:14]} Qf4+
{[%clk 00:01:14]} {[%emt 00:00:04]} 41. Ke1 {[%clk 00:25:26]} {[%emt 00:00:20]}
Nc6 {[%clk 00:05:08]} {[%emt 00:12:06]} 42. Rd3 {[%clk 00:30:56]} {[%emt
00:11:00]} Ne5 {[%clk 00:02:24]} {[%emt 00:03:14]} 43. Re3 {[%clk 00:24:30]}
{[%emt 00:06:57]} Nc4 {[%clk 00:00:43]} {[%emt 00:02:11]} 44. Rf3 {[%clk
00:20:56]} {[%emt 00:04:04]} Qe4+ {[%clk 00:01:02]} {[%emt 00:00:09]} 45. Kd1
{[%clk 00:20:53]} {[%emt 00:00:34]} Nxb2+ {[%clk 00:00:32]} {[%emt 00:01:01]}
46. Kc1 {[%clk 00:20:31]} {[%emt 00:00:52]} Nc4 {[%clk 00:00:58]} {[%emt
00:00:03]} 47. Rf5 {[%clk 00:19:13]} {[%emt 00:01:48]} Ne5 {[%clk 00:01:05]}
{[%emt 00:00:24]} 48. Kb2 {[%clk 00:18:08]} {[%emt 00:01:36]} Qe2+ {[%clk
00:00:39]} {[%emt 00:00:53]} 49. Ka1 {[%clk 00:17:00]} {[%emt 00:01:40]} Qd1+
{[%clk 00:00:51]} {[%emt 00:00:16]} 50. Ka2 {[%clk 00:16:21]} {[%emt 00:01:12]}
Qa4+ {[%clk 00:00:47]} {[%emt 00:00:33]} 51. Kb2 {[%clk 00:16:33]} {[%emt
00:00:18]} Qb5+ {[%clk 00:01:13]} {[%emt 00:00:03]} 52. Kc1 {[%clk 00:16:52]}
{[%emt 00:00:12]} Qd5 {[%clk 00:00:46]} {[%emt 00:00:55]} 53. Qe3 {[%clk
00:14:47]} {[%emt 00:02:35]} Qxa5 {[%clk 00:00:34]} {[%emt 00:00:43]} 54. Rxg5
{[%clk 00:14:32]} {[%emt 00:00:46]} Qa1+ {[%clk 00:00:53]} {[%emt 00:00:10]} 55.
Kc2 {[%clk 00:14:54]} {[%emt 00:00:08]} Qa4+ {[%clk 00:00:59]} {[%emt
00:00:22]} 56. Qb3 {[%clk 00:14:04]} {[%emt 00:01:23]} Qe4+ {[%clk 00:01:10]}
{[%emt 00:00:18]} 57. Kd1 {[%clk 00:12:07]} {[%emt 00:02:27]} Qh1+ {[%clk
00:00:40]} {[%emt 00:01:00]} 58. Kc2 {[%clk 00:12:14]} {[%emt 00:00:24]} Qe4+
{[%clk 00:01:06]} {[%emt 00:00:04]} 59. Kb2 {[%clk 00:12:10]} {[%emt 00:00:34]}
Nc4+ {[%clk 00:00:38]} {[%emt 00:00:57]} 60. Kc3 {[%clk 00:11:11]} {[%emt
00:01:30]} Qe3+ {[%clk 00:00:53]} {[%emt 00:00:12]} 61. Kxc4 {[%clk 00:11:38]}
{[%emt 00:00:06]} Qxg5 {[%clk 00:00:45]} {[%emt 00:00:38]} 62. Qxb7+ {[%clk
00:12:02]} {[%emt 00:00:07]} Ke6 {[%clk 00:01:02]} {[%emt 00:00:13]} 63. Qc8+
{[%clk 00:12:07]} {[%emt 00:00:25]} Ke5 {[%clk 00:01:05]} {[%emt 00:00:23]} 64.
Qh8+ {[%clk 00:09:30]} {[%emt 00:03:11]} Kf4 {[%clk 00:00:59]} {[%emt
00:00:34]} 65. Kd3 {[%clk 00:09:28]} {[%emt 00:00:33]} Kg3 {[%clk 00:00:49]}
{[%emt 00:00:39]} 66. Qd4 {[%clk 00:08:52]} {[%emt 00:01:07]} Kxh3 {[%clk
00:00:43]} {[%emt 00:00:36]} 67. Qxd6 {[%clk 00:08:50]} {[%emt 00:00:33]} Qxg4
{[%clk 00:00:53]} {[%emt 00:00:20]} 1/2-1/2